fUST/lending_fUST_20250210
["ID","MTS","AMOUNT","RATE_DAILY","PERIOD"]
[352580651,1739177452181,-151.602746,0.00012602,2]
[352580652,1739177452190,-1611.44,0.00012602,2]
[352580653,1739177452200,-1685.93,0.00012602,2]
[352580654,1739177452209,-7549.32,0.00012602,2]
[352580655,1739177452219,-523.33,0.00012602,2]
[352580656,1739177452228,-939.87,0.00012602,2]
[352580657,1739177452237,-500.0,0.00012602,2]
[352580658,1739177452247,-500.0,0.00012602,2]
[352580659,1739177452257,-813.9,0.00012602,2]
[352580660,1739177452266,-3077.14,0.00012602,2]
[352580661,1739177452276,-387.04,0.00012602,2]
[352580662,1739177452285,-778.55094216,0.00012623,2]
[352580663,1739177452295,-165.72186556,0.00012675,5]
[352580664,1739177452304,-778.55094216,0.00012723,2]
[352580665,1739177452313,-500.0,0.00012739,2]
[352580666,1739177452322,-500.0,0.00012739,2]
[352580667,1739177452331,-500.0,0.00012739,2]
[352580668,1739177452340,-544.43,0.00012739,2]
[352580669,1739177452349,-641.23,0.00012739,2]
[352580670,1739177452358,-470.16943482,0.00012739,2]
[352580671,1739177452368,-500.0,0.00012739,2]
[352580672,1739177452377,-500.0,0.00012739,2]
[352580673,1739177452386,-751.73,0.00012739,2]
[352580674,1739177452395,-500.0,0.00012739,2]
[352580675,1739177452404,-151.0,0.00012739,2]
[352580676,1739177452413,-151.0,0.00012739,2]
[352580677,1739177452422,-262.37,0.00012739,2]
[352580678,1739177452432,-1311.7,0.00012739,2]
[352580679,1739177452441,-1804.75,0.00012739,2]
[352580680,1739177452450,-1023.9,0.00012739,2]
[352580681,1739177452460,-562.34,0.00012739,2]
[352580682,1739177452469,-500.0,0.00012739,2]
[352580683,1739177452478,-5742.25,0.00012739,2]
[352580684,1739177452488,-934.87,0.00012739,2]
[352580685,1739177452497,-519.18,0.00012739,2]
[352580686,1739177452506,-640.17,0.00012739,2]
[352580687,1739177452516,-500.0,0.00012739,2]
[352580688,1739177452525,-500.0,0.00012739,2]
[352580689,1739177452535,-1231.86,0.00012739,2]
[352580690,1739177452544,-2809.93,0.00012739,2]
[352580691,1739177452554,-18466.36,0.00012739,2]
[352580692,1739177452563,-862.92,0.00012739,2]
[352580693,1739177452574,-500.0,0.00012739,2]
[352580694,1739177452584,-655.15,0.00012739,2]
[352580695,1739177452592,-500.0,0.00012739,2]
[352580696,1739177452601,-1386.96,0.00012739,2]
[352580697,1739177452611,-638.54,0.00012739,2]
[352580698,1739177452620,-730.94,0.00012739,2]
[352580699,1739177452630,-518.92,0.00012739,2]
[352580700,1739177452639,-1361.66,0.00012739,2]
[352580701,1739177452650,-632.7,0.00012739,2]
[352580702,1739177452659,-510.1,0.00012739,2]
[352580703,1739177452668,-500.0,0.00012739,2]
[352580704,1739177452678,-578.24,0.00012739,2]
[352580705,1739177452687,-652.46,0.00012739,2]
[352580706,1739177452696,-734.23,0.00012739,2]
[352580707,1739177452705,-500.0,0.00012739,2]
[352580708,1739177452715,-920.48,0.00012739,2]
[352580709,1739177452724,-1611.44,0.00012739,2]
[352580710,1739177452733,-1685.93,0.00012739,2]
[352580711,1739177452742,-7549.32,0.00012739,2]
[352580712,1739177452752,-523.33,0.00012739,2]
[352580713,1739177452761,-939.87,0.00012739,2]
[352580714,1739177452770,-500.0,0.00012739,2]
[352580715,1739177452779,-500.0,0.00012739,2]
[352580716,1739177452788,-813.9,0.00012739,2]
[352580717,1739177452798,-3077.14,0.00012739,2]
[352580718,1739177452807,-151.0,0.000128,2]
[352580719,1739177452816,-778.55094216,0.00012823,2]
[352580720,1739177452825,-500.0,0.00012876,2]
[352580721,1739177452834,-500.0,0.00012876,2]
[352580722,1739177452843,-153.71,0.00012876,2]
[352580723,1739177452852,-544.43,0.00012876,2]
[352580724,1739177452861,-641.23,0.00012876,2]
[352580725,1739177452870,-500.0,0.00012876,2]
[352580726,1739177452879,-500.0,0.00012876,2]
[352580727,1739177452887,-151.0,0.00012876,2]
[352580728,1739177452897,-751.73,0.00012876,2]
[352580729,1739177452906,-500.0,0.00012876,2]
[352580730,1739177452916,-1311.7,0.00012876,2]
[352580731,1739177452926,-1804.75,0.00012876,2]
[352580732,1739177452935,-1023.9,0.00012876,2]
[352580733,1739177452944,-562.34,0.00012876,2]
[352580734,1739177453053,-581.4,0.00012876,2]
[352580735,1739177453063,-5742.25,0.00012876,2]
[352580736,1739177453073,-934.87,0.00012876,2]
[352580737,1739177453083,-519.18,0.00012876,2]
[352580738,1739177453092,-640.17,0.00012876,2]
[352580739,1739177453101,-500.0,0.00012876,2]
[352580740,1739177453111,-500.0,0.00012876,2]
[352580741,1739177453120,-1231.86,0.00012876,2]
[352580742,1739177453130,-2809.93,0.00012876,2]
[352580743,1739177453139,-18466.36,0.00012876,2]
[352580744,1739177453148,-862.92,0.00012876,2]
[352580745,1739177453157,-500.0,0.00012876,2]
[352580746,1739177453166,-655.15,0.00012876,2]
[352580747,1739177453175,-500.0,0.00012876,2]
[352580748,1739177453184,-1386.96,0.00012876,2]
[352580749,1739177453194,-730.94,0.00012876,2]
[352580750,1739177453203,-518.92,0.00012876,2]
[352580751,1739177453213,-1361.66,0.00012876,2]
[352580752,1739177453222,-632.7,0.00012876,2]
[352580753,1739177453231,-510.1,0.00012876,2]
[352580754,1739177453241,-500.0,0.00012876,2]
[352580755,1739177453251,-578.24,0.00012876,2]
[352580756,1739177453261,-652.46,0.00012876,2]
[352580757,1739177453270,-734.23,0.00012876,2]
[352580758,1739177453279,-203.28813587,0.00012876,2]
[352580759,1739177453289,-920.48,0.00012876,2]
[352580760,1739177453298,-1611.44,0.00012876,2]
[352580761,1739177453307,-1685.93,0.00012876,2]
[352580762,1739177453316,-4655.2415906,0.00012876,2]
[352580763,1739177453407,-2894.0784094,0.00012876,2]
[352580764,1739177453417,-523.33,0.00012876,2]
[352580765,1739177453426,-939.87,0.00012876,2]
[352580766,1739177453436,-500.0,0.00012876,2]
[352580767,1739177453446,-406.56,0.00012876,2]
[352580768,1739177453455,-813.9,0.00012876,2]
[352580769,1739177453465,-3077.14,0.00012876,2]
[352580770,1739177453474,-161.86712307,0.00012893,2]
[352580771,1739177453483,-778.55094216,0.00012923,2]
[352580772,1739177453492,-1000.56880759,0.00012958,2]
[352580773,1739177453502,-1500.0,0.00012958,2]
[352580774,1739177453511,-500.0,0.00012985,2]
[352580775,1739177453521,-500.0,0.00013013,2]
[352580776,1739177453531,-500.0,0.00013013,2]
[352580777,1739177453541,-544.43,0.00013013,2]
[352580778,1739177453551,-641.23,0.00013013,2]
[352580779,1739177453560,-500.0,0.00013013,2]
[352580780,1739177453572,-500.0,0.00013013,2]
[352580781,1739177453583,-751.73,0.00013013,2]
[352580782,1739177453593,-500.0,0.00013013,2]
[352580783,1739177453602,-1311.7,0.00013013,2]
[352580784,1739177453612,-1804.75,0.00013013,2]
[352580785,1739177453622,-1023.9,0.00013013,2]
[352580786,1739177453631,-562.34,0.00013013,2]
[352580787,1739177453641,-5742.25,0.00013013,2]
[352580788,1739177453652,-934.87,0.00013013,2]
[352580789,1739177453661,-519.18,0.00013013,2]
[352580790,1739177453671,-640.17,0.00013013,2]
[352580791,1739177453680,-500.0,0.00013013,2]
[352580792,1739177453689,-500.0,0.00013013,2]
[352580793,1739177453698,-1231.86,0.00013013,2]
[352580794,1739177453707,-2809.93,0.00013013,2]
[352580795,1739177453717,-18466.36,0.00013013,2]
[352580796,1739177453726,-862.92,0.00013013,2]
[352580797,1739177453736,-500.0,0.00013013,2]
[352580798,1739177453745,-655.15,0.00013013,2]
[352580799,1739177453756,-500.0,0.00013013,2]
[352580800,1739177453765,-1386.96,0.00013013,2]
[352580801,1739177453774,-730.94,0.00013013,2]
[352580802,1739177453783,-518.92,0.00013013,2]
[352580803,1739177453792,-1361.66,0.00013013,2]
[352580804,1739177453802,-632.7,0.00013013,2]
[352580805,1739177453811,-510.1,0.00013013,2]
[352580806,1739177453820,-500.0,0.00013013,2]
[352580807,1739177453829,-578.24,0.00013013,2]
[352580808,1739177453838,-652.46,0.00013013,2]
[352580809,1739177453847,-734.23,0.00013013,2]
[352580810,1739177453856,-920.48,0.00013013,2]
[352580811,1739177453866,-1611.44,0.00013013,2]
[352580812,1739177453875,-1685.93,0.00013013,2]
[352580813,1739177453885,-7549.32,0.00013013,2]
[352580814,1739177453895,-523.33,0.00013013,2]
[352580815,1739177453905,-939.87,0.00013013,2]
[352580816,1739177453914,-500.0,0.00013013,2]
[352580817,1739177453923,-813.9,0.00013013,2]
[352580818,1739177453934,-3077.14,0.00013013,2]
[352580819,1739177453943,-778.55094216,0.00013023,2]
[352580820,1739177453952,-151.0,0.000131,2]
[352580821,1739177453961,-778.55094216,0.00013123,2]
[352580822,1739177453971,-500.0,0.0001315,2]
[352580823,1739177453980,-500.0,0.0001315,2]
[352580824,1739177453989,-544.43,0.0001315,2]
[352580825,1739177453998,-641.23,0.0001315,2]
[352580826,1739177454009,-500.0,0.0001315,2]
[352580827,1739177454018,-467.9,0.0001315,2]
[352580828,1739177454027,-220.901933,0.0001315,2]
[352580829,1739177454036,-220.901933,0.0001315,2]
[352580830,1739177454045,-223.377237,0.0001315,2]
[352580831,1739177454055,-223.377237,0.0001315,2]
[352580832,1739177454064,-151.0,0.0001315,2]
[352580833,1739177454073,-751.73,0.0001315,2]
[352580834,1739177454082,-500.0,0.0001315,2]
[352580835,1739177454091,-1311.7,0.0001315,2]
[352580836,1739177454100,-1804.75,0.0001315,2]
[352580837,1739177454110,-1023.9,0.0001315,2]
[352580838,1739177454119,-562.34,0.0001315,2]
[352580839,1739177454129,-5742.25,0.0001315,2]
[352580840,1739177454138,-934.87,0.0001315,2]
[352580841,1739177454148,-519.18,0.0001315,2]
[352580842,1739177454157,-640.17,0.0001315,2]
[352580843,1739177454166,-500.0,0.0001315,2]
[352580844,1739177454175,-500.0,0.0001315,2]
[352580845,1739177454184,-1231.86,0.0001315,2]
[352580846,1739177454194,-2809.93,0.0001315,2]
[352580847,1739177454203,-18466.36,0.0001315,2]
[352580848,1739177454213,-862.92,0.0001315,2]
[352580849,1739177454222,-317.63,0.0001315,2]
[352580850,1739177454232,-655.15,0.0001315,2]
[352580851,1739177454242,-500.0,0.0001315,2]
[352580852,1739177454251,-1386.96,0.0001315,2]
[352580853,1739177454261,-730.94,0.0001315,2]
[352580854,1739177454270,-518.92,0.0001315,2]
[352580855,1739177454280,-1361.66,0.0001315,2]
[352580856,1739177454290,-632.7,0.0001315,2]
[352580857,1739177454300,-510.1,0.0001315,2]
[352580858,1739177454310,-217.82,0.0001315,2]
[352580859,1739177454319,-578.24,0.0001315,2]
[352580860,1739177454329,-652.46,0.0001315,2]
[352580861,1739177454339,-734.23,0.0001315,2]
[352580862,1739177454349,-920.48,0.0001315,2]
[352580863,1739177454359,-151.0,0.0001315,2]
[352580864,1739177454369,-1611.44,0.0001315,2]
[352580865,1739177454378,-1685.93,0.0001315,2]
[352580866,1739177454388,-7549.32,0.0001315,2]
[352580867,1739177454398,-523.33,0.0001315,2]
[352580868,1739177454409,-939.87,0.0001315,2]
[352580869,1739177454418,-500.0,0.0001315,2]
[352580870,1739177454428,-813.9,0.0001315,2]
[352580871,1739177454439,-3077.14,0.0001315,2]
[352580872,1739177454448,-778.55094216,0.00013223,2]
[352580873,1739177454459,-500.0,0.00013287,2]
[352580874,1739177454469,-500.0,0.00013287,2]
[352580875,1739177454479,-544.43,0.00013287,2]
[352580876,1739177454489,-641.23,0.00013287,2]
[352580877,1739177454499,-500.0,0.00013287,2]
[352580878,1739177454509,-751.73,0.00013287,2]
[352580879,1739177454519,-500.0,0.00013287,2]
[352580880,1739177454529,-1311.7,0.00013287,2]
[352580881,1739177454539,-1804.75,0.00013287,2]
[352580882,1739177454549,-1023.9,0.00013287,2]
[352580883,1739177454558,-562.34,0.00013287,2]
[352580884,1739177454569,-5742.25,0.00013287,2]
[352580885,1739177454582,-934.87,0.00013287,2]
[352580886,1739177454591,-519.18,0.00013287,2]
[352580887,1739177454601,-640.17,0.00013287,2]
[352580888,1739177454611,-500.0,0.00013287,2]
[352580889,1739177454621,-500.0,0.00013287,2]
[352580890,1739177454630,-1231.86,0.00013287,2]
[352580891,1739177454640,-2809.93,0.00013287,2]
[352580892,1739177454650,-18466.36,0.00013287,2]
[352580893,1739177454660,-862.92,0.00013287,2]
[352580894,1739177454670,-655.15,0.00013287,2]
[352580895,1739177454680,-500.0,0.00013287,2]
[352580896,1739177454689,-1386.96,0.00013287,2]
[352580897,1739177454699,-151.0,0.00013287,2]
[352580898,1739177454708,-730.94,0.00013287,2]
[352580899,1739177454718,-518.92,0.00013287,2]
[352580900,1739177454729,-1361.66,0.00013287,2]
[352580901,1739177454739,-632.7,0.00013287,2]
[352580902,1739177454748,-151.0,0.00013287,2]
[352580903,1739177454759,-510.1,0.00013287,2]
[352580904,1739177454768,-578.24,0.00013287,2]
[352580905,1739177454778,-151.0,0.00013287,2]
[352580906,1739177454788,-652.46,0.00013287,2]
[352580907,1739177454797,-734.23,0.00013287,2]
[352580908,1739177454807,-151.0,0.00013287,2]
[352580909,1739177454816,-920.48,0.00013287,2]
[352580910,1739177454826,-1611.44,0.00013287,2]
[352580911,1739177454835,-1685.93,0.00013287,2]
[352580912,1739177454846,-7549.32,0.00013287,2]
[352580913,1739177454857,-523.33,0.00013287,2]
[352580914,1739177454866,-939.87,0.00013287,2]
[352580915,1739177454876,-500.0,0.00013287,2]
[352580916,1739177454886,-813.9,0.00013287,2]
[352580917,1739177454897,-3077.14,0.00013287,2]
[352580918,1739177454910,-778.55094216,0.00013323,2]
[352580919,1739177454920,-500.0,0.00013385,2]
[352580920,1739177454929,-151.0,0.000134,2]
[352580921,1739177454939,-161.86712307,0.00013421,2]
[352580922,1739177454948,-778.55094216,0.00013423,2]
[352580923,1739177454959,-500.0,0.00013424,2]
[352580924,1739177454969,-500.0,0.00013424,2]
[352580925,1739177454979,-151.0,0.00013424,2]
[352580926,1739177454988,-544.43,0.00013424,2]
[352580927,1739177454998,-641.23,0.00013424,2]
[352580928,1739177455008,-152.516223,0.00013424,2]
[352580929,1739177455017,-152.516223,0.00013424,2]
[352580930,1739177455026,-500.0,0.00013424,2]
[352580931,1739177455036,-751.73,0.00013424,2]
[352580932,1739177455045,-233.16000001,0.00013424,2]
[352580933,1739177455056,-151.0,0.00013424,2]
[352580934,1739177455066,-151.0,0.00013424,2]
[352580935,1739177455075,-151.0,0.00013424,2]
[352580936,1739177455084,-1311.7,0.00013424,2]
[352580937,1739177455094,-1804.75,0.00013424,2]
[352580938,1739177455104,-151.0,0.00013424,2]
[352580939,1739177455114,-1023.9,0.00013424,2]
[352580940,1739177455125,-562.34,0.00013424,2]
[352580941,1739177455134,-5742.25,0.00013424,2]
[352580942,1739177455144,-934.87,0.00013424,2]
[352580943,1739177455155,-519.18,0.00013424,2]
[352580944,1739177455165,-640.17,0.00013424,2]
[352580945,1739177455174,-500.0,0.00013424,2]
[352580946,1739177455183,-500.0,0.00013424,2]
[352580947,1739177455195,-1231.86,0.00013424,2]
[352580948,1739177455208,-151.0,0.00013424,2]
[352580949,1739177455217,-2809.93,0.00013424,2]
[352580950,1739177455227,-18466.36,0.00013424,2]
[352580951,1739177455237,-862.92,0.00013424,2]
[352580952,1739177455247,-655.15,0.00013424,2]
[352580953,1739177455258,-500.0,0.00013424,2]
[352580954,1739177455267,-151.0,0.00013424,2]
[352580955,1739177455277,-151.0,0.00013424,2]
[352580956,1739177455286,-1386.96,0.00013424,2]
[352580957,1739177455296,-730.94,0.00013424,2]
[352580958,1739177455306,-518.92,0.00013424,2]
[352580959,1739177455317,-1361.66,0.00013424,2]
[352580960,1739177455327,-632.7,0.00013424,2]
[352580961,1739177455337,-510.1,0.00013424,2]
[352580962,1739177455347,-578.24,0.00013424,2]
[352580963,1739177455356,-652.46,0.00013424,2]
[352580964,1739177455366,-734.23,0.00013424,2]
[352580965,1739177455376,-920.48,0.00013424,2]
[352580966,1739177455386,-1611.44,0.00013424,2]
[352580967,1739177455396,-1685.93,0.00013424,2]
[352580968,1739177455406,-7549.32,0.00013424,2]
[352580969,1739177455415,-523.33,0.00013424,2]
[352580970,1739177455425,-939.87,0.00013424,2]
[352580971,1739177455435,-507.27,0.00013424,2]
[352580972,1739177455445,-813.9,0.00013424,2]
[352580973,1739177455455,-3077.14,0.00013424,2]
[352580974,1739177455464,-778.55094216,0.00013523,2]
[352580975,1739177455474,-516.62107656,0.0001354,2]
[352580976,1739177455484,-500.0,0.00013561,2]
[352580977,1739177455495,-500.0,0.00013561,2]
[352580978,1739177455505,-544.43,0.00013561,2]
[352580979,1739177455516,-641.23,0.00013561,2]
[352580980,1739177455526,-500.0,0.00013561,2]
[352580981,1739177455536,-751.73,0.00013561,2]
[352580982,1739177455545,-1311.7,0.00013561,2]
[352580983,1739177455554,-1804.75,0.00013561,2]
[352580984,1739177455563,-1023.9,0.00013561,2]
[352580985,1739177455576,-562.34,0.00013561,2]
[352580986,1739177455586,-5742.25,0.00013561,2]
[352580987,1739177455596,-934.87,0.00013561,2]
[352580988,1739177455606,-519.18,0.00013561,2]
[352580989,1739177455616,-640.17,0.00013561,2]
[352580990,1739177455626,-560.52,0.00013561,2]
[352580991,1739177455635,-500.0,0.00013561,2]
[352580992,1739177455646,-1231.86,0.00013561,2]
[352580993,1739177455655,-2809.93,0.00013561,2]
[352580994,1739177455665,-18466.36,0.00013561,2]
[352580995,1739177455674,-862.92,0.00013561,2]
[352580996,1739177455684,-655.15,0.00013561,2]
[352580997,1739177455695,-500.0,0.00013561,2]
[352580998,1739177455712,-1386.96,0.00013561,2]
[352580999,1739177455721,-730.94,0.00013561,2]
[352581000,1739177455730,-518.92,0.00013561,2]
[352581001,1739177455740,-1361.66,0.00013561,2]
[352581002,1739177455750,-632.7,0.00013561,2]
[352581003,1739177455759,-510.1,0.00013561,2]
[352581004,1739177455768,-578.24,0.00013561,2]
[352581005,1739177455778,-652.46,0.00013561,2]
[352581006,1739177455787,-734.23,0.00013561,2]
[352581007,1739177455796,-920.48,0.00013561,2]
[352581008,1739177455806,-1611.44,0.00013561,2]
[352581009,1739177455912,-1685.93,0.00013561,2]
[352581010,1739177455921,-7549.32,0.00013561,2]
[352581011,1739177455931,-523.33,0.00013561,2]
[352581012,1739177455940,-939.87,0.00013561,2]
[352581013,1739177455949,-813.9,0.00013561,2]
[352581014,1739177455959,-3077.14,0.00013561,2]
[352581015,1739177455968,-200.0,0.000136,2]
[352581016,1739177455977,-200.0,0.000136,2]
[352581017,1739177455986,-200.0,0.000136,2]
[352581018,1739177455996,-13267.29691025,0.00013616,2]
[352581019,1739177456005,-778.55094216,0.00013623,2]
[352581020,1739177456015,-4469.72256825,0.00013698,5]
[352581021,1739177456024,-500.0,0.00013698,2]
[352581022,1739177456033,-500.0,0.00013698,2]
[352581023,1739177456043,-472.697527,0.00013698,2]
[352581024,1739177456052,-472.697527,0.00013698,2]
[352581025,1739177456062,-544.43,0.00013698,2]
[352581026,1739177456071,-641.23,0.00013698,2]
[352581027,1739177456080,-500.0,0.00013698,2]
[352581028,1739177456090,-151.0,0.00013698,2]
[352581029,1739177456100,-751.73,0.00013698,2]
[352581030,1739177456110,-1311.7,0.00013698,2]
[352581031,1739177456119,-1804.75,0.00013698,2]
[352581032,1739177456129,-1023.9,0.00013698,2]
[352581033,1739177456138,-562.34,0.00013698,2]
[352581034,1739177456148,-5742.25,0.00013698,2]
[352581035,1739177456158,-934.87,0.00013698,2]
[352581036,1739177456168,-519.18,0.00013698,2]
[352581037,1739177456177,-640.17,0.00013698,2]
[352581038,1739177456186,-468.33,0.00013698,2]
[352581039,1739177456196,-1231.86,0.00013698,2]
[352581040,1739177456205,-2809.93,0.00013698,2]
[352581041,1739177456214,-18466.36,0.00013698,2]
[352581042,1739177456224,-862.92,0.00013698,2]
[352581043,1739177456234,-655.15,0.00013698,2]
[352581044,1739177456243,-500.0,0.00013698,2]
[352581045,1739177456253,-1386.96,0.00013698,2]
[352581046,1739177456262,-730.94,0.00013698,2]
[352581047,1739177456271,-518.92,0.00013698,2]
[352581048,1739177456281,-1361.66,0.00013698,2]
[352581049,1739177456290,-632.7,0.00013698,2]
[352581050,1739177456300,-510.1,0.00013698,2]
[352581051,1739177456309,-578.24,0.00013698,2]
[352581052,1739177456318,-652.46,0.00013698,2]
[352581053,1739177456328,-734.23,0.00013698,2]
[352581054,1739177456337,-920.48,0.00013698,2]
[352581055,1739177456347,-1611.44,0.00013698,2]
[352581056,1739177456356,-1685.93,0.00013698,2]
[352581057,1739177456366,-7549.32,0.00013698,2]
[352581058,1739177456375,-523.33,0.00013698,2]
[352581059,1739177456384,-939.87,0.00013698,2]
[352581060,1739177456394,-813.9,0.00013698,2]
[352581061,1739177456404,-3077.14,0.00013698,2]
[352581062,1739177456413,-639.989897,0.00013699,2]
[352581063,1739177456422,-703.33396,0.00013699,2]
[352581064,1739177456431,-500.0,0.00013699,2]
[352581065,1739177456440,-500.0,0.00013699,2]
[352581066,1739177456449,-500.0,0.00013699,2]
[352581067,1739177456459,-500.0,0.00013699,2]
[352581068,1739177456468,-500.0,0.00013699,2]
[352581069,1739177456478,-500.0,0.00013699,2]
[352581070,1739177456487,-500.0,0.00013699,2]
[352581071,1739177456496,-500.0,0.00013699,2]
[352581072,1739177456506,-500.0,0.00013699,2]
[352581073,1739177456516,-500.0,0.00013699,2]
[352581074,1739177456525,-500.0,0.00013699,2]
[352581075,1739177456534,-500.0,0.00013699,2]
[352581076,1739177456544,-500.0,0.00013699,2]
[352581077,1739177456553,-500.0,0.00013699,2]
[352581078,1739177456563,-500.0,0.00013699,2]
[352581079,1739177456573,-500.0,0.00013699,2]
[352581080,1739177456583,-500.0,0.00013699,2]
[352581081,1739177456592,-500.0,0.00013699,2]
[352581082,1739177456601,-500.0,0.00013699,2]
[352581083,1739177456611,-500.0,0.00013699,2]
[352581084,1739177456620,-500.0,0.00013699,2]
[352581085,1739177456630,-500.0,0.00013699,2]
[352581086,1739177456639,-500.0,0.00013699,2]
[352581087,1739177456650,-500.0,0.00013699,2]
[352581088,1739177456659,-500.0,0.00013699,2]
[352581089,1739177456668,-500.0,0.00013699,2]
[352581090,1739177456677,-500.0,0.00013699,2]
[352581091,1739177456686,-500.0,0.00013699,2]
[352581092,1739177456696,-500.0,0.00013699,2]
[352581093,1739177456705,-500.0,0.00013699,2]
[352581094,1739177456716,-500.0,0.00013699,2]
[352581095,1739177456725,-500.0,0.00013699,2]
[352581096,1739177456735,-500.0,0.00013699,2]
[352581097,1739177456744,-500.0,0.00013699,2]
[352581098,1739177456754,-500.0,0.00013699,2]
[352581099,1739177456763,-500.0,0.00013699,2]
[352581100,1739177456773,-500.0,0.00013699,2]
[352581101,1739177456782,-500.0,0.00013699,2]
[352581102,1739177456792,-500.0,0.00013699,2]
[352581103,1739177456801,-500.0,0.00013699,2]
[352581104,1739177456811,-500.0,0.00013699,2]
[352581105,1739177456820,-500.0,0.00013699,2]
[352581106,1739177456830,-603.57695349,0.00013699,2]
[352581107,1739177456840,-500.0,0.00013699,2]
[352581108,1739177456850,-500.0,0.00013699,2]
[352581109,1739177456860,-500.0,0.00013699,2]
[352581110,1739177456869,-500.0,0.00013699,2]
[352581111,1739177456879,-500.0,0.00013699,2]
[352581112,1739177456888,-500.0,0.00013699,2]
[352581113,1739177456898,-500.0,0.00013699,2]
[352581114,1739177456907,-500.0,0.00013699,2]
[352581115,1739177456916,-500.0,0.00013699,2]
[352581116,1739177456926,-500.0,0.00013699,2]
[352581117,1739177456936,-500.0,0.00013699,2]
[352581118,1739177456946,-250.0,0.00013699,2]
[352581119,1739177456955,-500.0,0.00013699,2]
[352581120,1739177456965,-500.0,0.00013699,2]
[352581121,1739177456975,-151.0,0.000137,2]
[352581122,1739177456985,-173.52748736,0.000137,2]
[352581123,1739177456995,-173.52,0.000137,2]
[352581124,1739177457004,-161.95898821,0.000137,2]
[352581125,1739177457014,-161.95898821,0.000137,2]
[352581126,1739177457023,-161.95898821,0.000137,2]
[352581127,1739177457033,-161.95898821,0.000137,2]
[352581128,1739177457043,-161.95,0.000137,2]
[352581129,1739177457052,-778.55094216,0.00013723,2]
[352581130,1739177457062,-778.55094216,0.00013823,2]
[352581131,1739177457071,-5077.16345964,0.00013835,5]
[352581132,1739177457082,-426.27712056,0.00013835,2]
[352581133,1739177457091,-500.0,0.00013835,2]
[352581134,1739177457101,-544.43,0.00013835,2]
[352581135,1739177457111,-641.23,0.00013835,2]
[352581136,1739177457120,-430.08,0.00013835,2]
[352581137,1739177457130,-751.73,0.00013835,2]
[352581138,1739177457140,-1311.7,0.00013835,2]
[352581139,1739177457149,-1804.75,0.00013835,2]
[352581140,1739177457159,-1023.9,0.00013835,2]
[352581141,1739177457169,-562.34,0.00013835,2]
[352581142,1739177457179,-5742.25,0.00013835,2]
[352581143,1739177457188,-934.87,0.00013835,2]
[352581144,1739177457199,-519.18,0.00013835,2]
[352581145,1739177457209,-640.17,0.00013835,2]
[352581146,1739177457218,-1231.86,0.00013835,2]
[352581147,1739177457228,-2809.93,0.00013835,2]
[352581148,1739177457237,-18466.36,0.00013835,2]
[352581149,1739177457247,-862.92,0.00013835,2]
[352581150,1739177457257,-655.15,0.00013835,2]